bitfinex-derivatives/quotes_SOLF0:USTF0_20220106
["timestamp","ask_amount","ask_price","bid_price","bid_amount"]
[1641492825063,4.0,153.32,153.18,64.5094]
[1641492825464,4.0,153.3,153.18,64.5094]
[1641492825863,4.0,153.31,153.18,64.5094]
[1641492826064,4.0,153.32,153.18,64.5094]
[1641492826363,27.66479,153.28,153.21,13.73718898]
[1641492826564,26.62168847,153.28,153.21,13.73718898]
[1641492826966,4.0,153.26,153.22,13.73718898]
[1641492827166,26.62168847,153.28,153.22,13.73718898]
[1641492828167,26.62168847,153.28,153.2,19.29718898]
[1641492829269,27.66479,153.3,153.21,13.73718898]
[1641492829669,27.66479,153.3,153.21,17.73718898]
[1641492829870,64.0123,153.33,153.23,4.0]
[1641492830270,64.0123,153.33,153.24,27.66479]
[1641492830470,64.0123,153.33,153.24,32.06279]
[1641492831172,64.0123,153.33,153.26,13.73718898]
[1641492831370,27.66479,153.35,153.26,13.73718898]
[1641492831772,31.66479,153.35,153.26,13.73718898]
[1641492832172,27.66479,153.31,153.24,13.73718898]
[1641492832971,27.66479,153.31,153.25,13.73718898]
[1641492833775,27.66479,153.31,153.25,5.018]
[1641492834575,27.66479,153.31,153.26,1.44337421]
[1641492834972,4.0,153.29,153.24,13.73718898]
[1641492835173,4.0,153.29,153.22,6.90122134]
[1641492835372,34.00879,153.31,153.17,67.4613]
[1641492835574,63.4417,153.3,153.21,13.73726653]
[1641492836275,27.66479,153.23,153.21,13.73726653]
[1641492836477,27.66479,153.23,153.18,10.58087432]
[1641492836977,27.66479,153.23,153.18,6.89884492]
[1641492837578,27.66479,153.23,153.15,10.89884492]
[1641492837775,63.4417,153.3,153.2,4.0]
[1641492837977,63.4417,153.3,153.2,5.228]
[1641492838378,91.10649,153.3,153.2,5.228]
[1641492838779,91.10649,153.3,153.19,27.66479]
[1641492838984,96.92149,153.3,153.19,27.66479]
[1641492839682,4.0,153.29,153.2,6.89884492]
[1641492840282,27.66479,153.25,153.2,6.89884492]
[1641492841385,27.66479,153.25,153.15,14.58087432]
[1641492841584,27.66479,153.25,153.19,4.0]
[1641492841784,27.66479,153.25,153.19,6.466]
[1641492842384,27.66479,153.25,153.19,10.466]
[1641492843887,27.66479,153.25,153.19,24.5613343]
[1641492844687,27.66479,153.25,153.19,13.36484492]
[1641492846287,27.66479,153.25,153.19,24.5613343]
[1641492849092,27.66479,153.25,153.19,79.78385222]
[1641492849291,27.66479,153.25,153.2,4.0]
[1641492849492,27.66479,153.25,153.21,4.0]
[1641492849894,27.66479,153.25,153.21,55.22251792]
[1641492850293,27.66479,153.28,153.21,59.22251792]
[1641492850593,27.66479,153.28,153.22,4.0]
[1641492851693,27.66479,153.28,153.23,4.0]
[1641492851894,27.66479,153.28,153.23,66.25751792]
[1641492853394,27.66479,153.28,153.23,62.25751792]
[1641492854997,27.66479,153.28,153.23,7.035]
[1641492857097,27.66479,153.28,153.21,4.0]
[1641492857497,27.66479,153.28,153.2,62.58635688]
[1641492857699,27.66479,153.28,153.2,66.58635688]
[1641492858197,27.66479,153.28,153.2,62.58635688]
[1641492858397,27.66479,153.28,153.2,66.58635688]
[1641492859498,27.66479,153.28,153.21,4.0]
[1641492859799,27.66479,153.28,153.2,62.58635688]
[1641492860000,27.66479,153.28,153.2,58.90454732]
[1641492860699,27.66479,153.28,153.2,3.6820294]
[1641492862099,27.66479,153.28,153.2,7.6820294]
[1641492862299,27.66479,153.28,153.2,3.6820294]
[1641492863403,27.66479,153.28,153.2,7.6820294]
[1641492863702,27.66479,153.28,153.2,3.6820294]
[1641492863902,61.8677,153.3,153.22,4.0]
[1641492864103,4.6005254,153.31,153.22,9.968]
[1641492864303,27.66479,153.35,153.24,27.66479]
[1641492864504,90.24459,153.35,153.24,27.66479]
[1641492864906,62.5798,153.35,153.27,4.0]
[1641492865105,62.5798,153.35,153.27,8.465]
[1641492865306,62.5798,153.35,153.31,4.57544946]
[1641492865503,4.6005254,153.38,153.31,8.97444946]
[1641492866704,4.0,153.4,153.33,4.57544946]
[1641492866905,95.1249154,153.41,153.33,4.57544946]
[1641492867103,4.0,153.4,153.33,4.57544946]
[1641492867805,4.0,153.4,153.34,4.57544946]
[1641492870705,4.0,153.38,153.34,4.57544946]
[1641492870909,95.1249154,153.41,153.34,4.57544946]
[1641492871108,4.0,153.4,153.34,4.57544946]
[1641492871306,4.0,153.35,153.3,13.72422743]
[1641492871509,4.0,153.33,153.31,4.57475627]
[1641492871906,4.0,153.34,153.31,4.57475627]
[1641492872107,4.0,153.33,153.31,4.57475627]
[1641492872307,13.72422743,153.35,153.31,4.57475627]
[1641492873208,13.72422743,153.35,153.27,13.72422743]
[1641492873408,13.72422743,153.36,153.29,13.72422743]
[1641492873808,13.72422743,153.36,153.29,18.46522743]
[1641492874208,41.38901743,153.37,153.29,18.46522743]
[1641492875011,41.38901743,153.37,153.29,25.39761562]
[1641492875910,3.15065344,153.36,153.3,15.17378115]
[1641492876708,3.15065344,153.36,153.31,13.72422743]
[1641492879411,27.66479,153.37,153.31,13.72422743]
[1641492879613,27.66479,153.37,153.32,13.72422743]
[1641492880214,27.66479,153.37,153.33,13.72422743]
[1641492881312,27.66479,153.37,153.32,13.72422743]
[1641492883718,27.66479,153.37,153.33,13.72422743]
[1641492886321,27.66479,153.37,153.34,13.72422743]
[1641492886523,4.0,153.4,153.34,13.72422743]
[1641492887323,16.87436948,153.39,153.32,15.17378115]
[1641492888127,4.0,153.4,153.32,15.17378115]
[1641492888324,66.8596,153.41,153.32,15.17378115]
[1641492888525,27.66479,153.39,153.29,1.44955372]
[1641492889525,20.45223553,153.39,153.29,22.06647631]
[1641492889925,20.45223553,153.39,153.29,15.17378115]
[1641492890127,20.45223553,153.39,153.29,1.44955372]
[1641492890326,66.8596,153.41,153.29,1.44955372]
[1641492890525,27.66479,153.4,153.29,1.44955372]
[1641492890930,30.79734828,153.4,153.29,1.44955372]
[1641492891627,27.66479,153.4,153.29,1.44955372]
[1641492892029,4.0,153.39,153.29,1.44955372]
[1641492892229,4.0,153.35,153.29,1.44955372]
[1641492892427,4.0,153.31,153.29,1.44955372]
[1641492892629,10.744,153.31,153.29,20.61578358]
[1641492893128,6.744,153.31,153.29,20.61578358]
[1641492893729,6.744,153.31,153.29,13.72422743]
[1641492893928,6.744,153.31,153.24,27.66479]
[1641492895030,6.744,153.31,153.27,13.72422743]
[1641492895229,6.744,153.31,153.27,2.743e-05]
[1641492895529,4.0,153.29,153.23,11.24844972]
[1641492895729,4.0,153.3,153.23,11.24844972]
[1641492896130,4.0,153.3,153.14,96.00542817]
[1641492896431,4.0,153.3,153.17,3.68181221]
[1641492896630,27.66479,153.26,153.18,27.66479]
[1641492897831,33.10779,153.26,153.18,27.66479]
[1641492898035,4.0,153.23,153.17,14.9271575]
[1641492898232,4.0,153.24,153.17,14.9271575]
[1641492898633,27.66479,153.23,153.17,14.9271575]
[1641492899435,27.66479,153.23,153.17,11.24534529]
[1641492900535,27.66479,153.23,153.16,27.66479]
[1641492900937,4.0,153.29,153.16,27.66479]
[1641492901138,65.3663,153.28,153.16,34.35779]
[1641492901838,65.3663,153.28,153.16,38.35779]
[1641492902038,65.3663,153.28,153.16,34.35779]
[1641492902441,65.3663,153.28,153.17,55.22251792]
[1641492903341,65.3663,153.28,153.18,55.22251792]
[1641492903743,69.3663,153.28,153.18,55.22251792]
[1641492904145,4.0,153.26,153.18,55.22251792]
[1641492904543,27.66479,153.25,153.18,55.22251792]
[1641492904745,27.66479,153.25,153.17,3.68181221]
[1641492905543,65.3663,153.28,153.17,3.68181221]
[1641492905843,65.3663,153.28,153.17,10.59181221]
[1641492906548,27.66479,153.25,153.17,10.59181221]
[1641492906946,27.66479,153.25,153.17,70.14967542]
[1641492907646,27.66479,153.25,153.17,3.68181221]
[1641492908249,31.66479,153.29,153.17,3.68181221]
[1641492908649,27.66479,153.26,153.17,3.68181221]
[1641492909252,4.0,153.25,153.17,3.68181221]
[1641492909451,27.66479,153.26,153.17,3.68181221]
[1641492910350,67.2112,153.28,153.17,3.68181221]
[1641492910551,27.66479,153.26,153.17,3.68181221]
[1641492910750,27.66479,153.26,153.16,59.01139221]
[1641492911449,4.0,153.23,153.16,31.34660221]
[1641492911651,4.0,153.21,153.17,11.24534529]
[1641492911853,9.422,153.21,153.17,11.24534529]
[1641492912551,27.66479,153.19,153.15,58.90433013]
[1641492912752,27.66479,153.19,153.15,3.68181221]
[1641492914956,27.66479,153.19,153.14,14.9271575]
[1641492915555,34.35379,153.19,153.14,14.9271575]
[1641492916155,34.35379,153.19,153.14,3.68181221]
[1641492916556,34.35379,153.19,153.12,10.60967649]
[1641492917956,4.0,153.15,153.12,6.92786428]
[1641492918557,27.66479,153.13,153.12,6.92786428]
[1641492918959,27.66479,153.13,153.1,55.22251792]
[1641492919160,31.66479,153.13,153.09,65.83480061]
[1641492919558,31.66479,153.13,153.09,62.1505274]
[1641492920060,4.0,153.12,153.09,55.22251792]
[1641492920459,4.0,153.12,153.05,55.22251792]
[1641492920660,27.66479,153.07,153.05,55.22251792]
[1641492920862,27.66479,153.13,153.05,55.22251792]
[1641492921160,27.66479,153.13,153.05,61.45751792]
[1641492921560,27.66479,153.13,153.05,6.235]
[1641492922259,61.9927,153.14,153.05,6.235]
[1641492922462,4.0,153.15,153.06,55.22251792]
[1641492923364,4.0,153.15,153.07,55.22251792]
[1641492923563,4.0,153.14,153.07,55.22251792]
[1641492923763,10.248,153.14,153.07,55.22251792]
[1641492924164,4.0,153.13,153.07,55.22251792]
[1641492924367,4.0,153.13,153.01,66.4133]
[1641492924368,10.248,153.14,153.05,55.22251792]
[1641492924565,4.0,153.12,153.05,55.22251792]
[1641492924766,27.66479,153.09,153.05,55.22251792]
[1641492925366,27.66479,153.09,153.03,55.22251792]
[1641492927270,7.092,153.11,153.03,55.22251792]
[1641492927669,4.0,153.09,153.03,55.22251792]
[1641492928070,4.0,153.08,153.03,55.22251792]
[1641492928271,7.092,153.11,153.03,55.22251792]
[1641492928471,4.0,153.07,153.03,55.22251792]
[1641492928672,6.268,153.07,153.03,55.22251792]
[1641492928876,6.268,153.07,153.01,55.22251792]
[1641492929372,4.0,153.06,153.01,55.22251792]
[1641492929572,6.268,153.07,153.01,55.22251792]
[1641492929773,66.1975,153.1,153.01,55.22251792]
[1641492929975,62.1975,153.1,153.0,55.22251792]
[1641492930374,4.0,153.12,153.0,55.22251792]
[1641492930573,4.0,153.14,153.01,4.0]
[1641492930774,4.0,153.14,153.04,27.66479]
[1641492931675,91.01499,153.15,153.04,27.66479]
[1641492931676,4.0,153.13,153.04,27.66479]
[1641492931874,91.01499,153.15,153.04,27.66479]
[1641492931875,91.01499,153.15,153.05,55.22251792]
[1641492932077,63.3502,153.15,153.05,55.22251792]
[1641492932775,63.3502,153.15,153.09,27.66479]
[1641492934076,63.3502,153.15,153.1,1.44546978]
[1641492934276,8.60588839,153.17,153.1,1.44546978]
[1641492934878,4.0,153.17,153.1,1.44546978]
[1641492935477,65.72248839,153.18,153.1,1.44546978]
[1641492935677,4.60588839,153.18,153.1,5.44546978]
[1641492936679,8.60588839,153.22,153.13,27.66479]
[1641492936978,4.60588839,153.22,153.13,27.66479]
[1641492937180,8.60588839,153.22,153.13,27.66479]
[1641492937878,8.60588839,153.22,153.21,4.60448158]
[1641492938079,8.60588839,153.22,153.14,1.44546978]
[1641492938279,15.38488839,153.22,153.14,1.44546978]
[1641492938579,10.779,153.22,153.14,1.44546978]
[1641492938981,4.0,153.21,153.14,1.44546978]
[1641492939686,3.15932632,153.2,153.14,1.44546978]
[1641492940386,4.0,153.19,153.14,1.44546978]
[1641492940585,4.0,153.18,153.14,1.44546978]
[1641492940786,27.66479,153.16,153.14,1.44546978]
[1641492941188,4.423,153.18,153.14,1.44546978]
[1641492941388,4.423,153.18,153.1,8.36967049]
[1641492941889,13.81874613,153.2,153.11,4.0]
[1641492942092,13.81874613,153.2,153.11,5.363]
[1641492942289,13.81874613,153.22,153.11,9.363]
[1641492942492,13.81874613,153.22,153.15,4.0]
[1641492942692,13.81874613,153.22,153.15,10.683]
[1641492942893,13.81874613,153.22,153.17,27.66479]
[1641492943595,44.64131461,153.26,153.17,27.66479]
[1641492943998,16.97652461,153.26,153.18,4.0]
[1641492944196,16.97652461,153.26,153.19,4.0]
[1641492944596,3.15777848,153.25,153.18,12.36967049]
[1641492944795,3.15777848,153.25,153.21,27.66479]
[1641492945497,3.15777848,153.25,153.21,32.99479]
[1641492945897,50.63419319,153.3,153.22,8.36967049]
[1641492946096,13.81874613,153.3,153.22,8.36967049]
[1641492946797,17.81874613,153.3,153.22,8.36967049]
[1641492946996,13.81874613,153.3,153.22,8.36967049]
[1641492947198,16.97652461,153.31,153.23,13.80728219]
[1641492947397,4.0,153.29,153.23,13.80728219]
[1641492947597,4.0,153.29,153.22,8.36967049]
[1641492947598,4.0,153.25,153.22,8.36967049]
[1641492947801,9.806,153.25,153.19,11.24501592]
[1641492948000,9.806,153.25,153.15,55.22251792]
[1641492948199,5.806,153.25,153.13,4.0]
[1641492948398,5.806,153.25,153.12,59.22251792]
[1641492948800,5.806,153.25,153.14,27.66479]
[1641492948998,73.3221,153.25,153.14,27.66479]
[1641492949598,71.84212772,153.25,153.14,27.66479]
[1641492950600,4.0,153.24,153.12,11.2380367]
[1641492950800,27.66479,153.18,153.12,11.2380367]
[1641492950998,34.54379,153.18,153.12,11.2380367]
[1641492951699,6.879,153.18,153.12,11.2380367]
[1641492952102,6.879,153.18,153.1,11.2380367]
[1641492952302,66.5348,153.2,153.11,4.0]
[1641492952702,66.5348,153.2,153.1,15.2380367]
[1641492952902,72.5548,153.2,153.13,27.66479]
[1641492954508,66.5348,153.2,153.13,27.66479]
[1641492954707,125.2928,153.24,153.13,27.66479]
[1641492954908,61.1878,153.24,153.13,27.66479]
[1641492955509,61.1878,153.24,153.13,38.9028267]
[1641492957015,61.1878,153.24,153.13,43.8458267]
[1641492957211,61.1878,153.24,153.13,47.8458267]
[1641492957510,61.1878,153.24,153.14,4.0]
[1641492957711,63.8594,153.25,153.15,4.0]
[1641492958813,63.8594,153.25,153.17,27.66479]
[1641492963616,4.0,153.24,153.15,11.2380367]
[1641492963816,72.9764,153.25,153.15,11.2380367]
[1641492964017,68.9764,153.25,153.15,11.2380367]
[1641492964319,72.9764,153.25,153.15,11.2380367]
[1641492964518,4.0,153.23,153.15,11.2380367]
[1641492964719,4.0,153.24,153.15,11.2380367]
[1641492964919,31.66479,153.24,153.15,11.2380367]
[1641492965120,4.0,153.23,153.13,27.66479]
[1641492965722,4.0,153.19,153.12,11.2380367]
[1641492965921,6.392,153.19,153.13,11.2380367]
[1641492966120,10.392,153.19,153.13,11.2380367]
[1641492966320,6.392,153.19,153.13,11.2380367]
[1641492966721,10.392,153.19,153.11,70.0]
[1641492966921,38.05679,153.19,153.11,70.0]
[1641492967122,4.0,153.18,153.11,70.0]
[1641492967521,31.66479,153.19,153.11,70.0]
[1641492967720,27.66479,153.19,153.11,70.0]
[1641492968925,27.66479,153.19,153.12,6.92037065]
[1641492969225,31.66479,153.19,153.12,6.92037065]
[1641492969424,27.66479,153.19,153.12,6.92037065]
[1641492969626,31.66479,153.19,153.12,6.92037065]
[1641492969825,4.0,153.18,153.12,6.92037065]
[1641492970028,10.538,153.18,153.12,6.92037065]
[1641492970225,6.538,153.18,153.12,6.92037065]
[1641492971227,27.66479,153.19,153.12,6.92037065]
[1641492976130,31.66479,153.19,153.12,6.92037065]
[1641492976532,27.66479,153.19,153.12,6.92037065]
[1641492976931,27.66479,153.15,153.12,6.92037065]
[1641492977631,33.38979,153.15,153.12,6.92037065]
[1641492977831,33.38979,153.15,153.12,20.73659374]
[1641492978732,33.38979,153.15,153.13,13.81622309]
[1641492979531,27.66479,153.15,153.13,13.81622309]
[1641492981036,91.64069,153.19,153.13,20.60322309]
[1641492981237,27.66479,153.19,153.13,20.60322309]
[1641492983839,27.66479,153.19,153.13,13.81622309]
[1641492984844,27.66479,153.19,153.12,20.73659374]
[1641492985043,4.0,153.18,153.12,20.73659374]
[1641492985541,4.0,153.17,153.12,20.73659374]
[1641492985741,4.0,153.18,153.12,20.73659374]
[1641492985942,27.66479,153.19,153.12,20.73659374]
[1641492986145,4.0,153.13,153.12,20.73659374]
[1641492986542,11.146,153.13,153.11,70.0]
[1641492986742,4.0,153.12,153.11,16.56745377]
[1641492986942,59.32958,153.12,153.11,16.56745377]
[1641492987143,55.32958,153.12,153.11,16.56745377]
[1641492987345,27.66479,153.12,153.11,16.56745377]
[1641492987544,31.66479,153.12,153.01,82.88730792]
[1641492987745,27.66479,153.12,153.02,66.7277]
[1641492987945,27.66479,153.12,153.02,70.41289951]
[1641492988446,92.53919,153.12,153.03,1.44229107]
[1641492988648,92.53919,153.12,153.03,12.6787158]
[1641492989449,92.53919,153.12,153.03,1.44229107]
[1641492990052,96.53919,153.12,153.03,1.44229107]
[1641492990251,92.53919,153.12,153.03,1.44229107]
[1641492991753,27.66479,153.12,153.03,1.44229107]
[1641492991953,27.66479,153.12,153.03,12.61518186]
[1641492992153,27.66479,153.12,153.03,16.61518186]
[1641492992855,27.66479,153.12,153.04,4.0]
[1641492993055,27.66479,153.12,153.04,5.44229107]
[1641492993454,27.66479,153.12,153.05,27.66479]
[1641492994256,61.4988,153.15,153.04,5.44229107]
[1641492994454,61.4988,153.15,153.06,1.44229107]
[1641492994956,61.4988,153.15,153.05,1.44229107]
[1641492995558,27.66479,153.14,153.05,29.10708107]
[1641492996562,27.66479,153.14,153.06,1.44229107]
[1641492997763,31.66479,153.14,153.06,1.44229107]
[1641492999367,31.66479,153.14,153.09,4.58023865]
[1641492999667,27.66479,153.1,153.09,4.58023865]
[1641493001069,27.66479,153.1,153.08,4.58023865]
[1641493001468,27.66479,153.14,153.08,4.58023865]
[1641493002371,4.58023865,153.13,153.12,4.58023865]
[1641493003272,4.58023865,153.13,153.04,1.44229107]
[1641493004874,95.13189,153.14,153.04,1.44229107]
[1641493004875,99.71212865,153.14,153.04,1.44229107]
[1641493005674,99.71212865,153.14,153.13,4.60600279]
[1641493005875,32.24502865,153.14,153.13,1e-08]
[1641493006275,4.58023865,153.14,153.13,1e-08]
[1641493006475,3.16405665,153.14,153.13,1e-08]
[1641493006675,30.82884665,153.14,153.13,1e-08]
[1641493006879,3.16405665,153.14,153.13,1e-08]
[1641493007276,63.4755,153.18,153.13,1e-08]
[1641493007978,36.81544706,153.21,153.13,1e-08]
[1641493008376,3.16335442,153.17,153.11,5.44229107]
[1641493008576,3.16335442,153.17,153.11,67.46269107]
[1641493008777,3.16335442,153.17,153.12,31.66479]
[1641493008977,3.16335442,153.17,153.12,27.66479]
[1641493009178,3.16335442,153.17,153.12,31.66479]
[1641493009377,27.66479,153.2,153.12,27.66479]
[1641493009577,27.66479,153.2,153.13,8.35850058]
[1641493009977,27.66479,153.2,153.13,13.92350058]
[1641493010679,20.29793288,153.2,153.13,13.92350058]
[1641493011078,20.29793288,153.2,153.14,1.44229107]
[1641493011679,24.29793288,153.2,153.14,1.44229107]
[1641493012082,3.16294272,153.19,153.13,8.35850058]
[1641493012879,20.29793288,153.2,153.13,8.35850058]
[1641493013880,3.16280756,153.19,153.13,8.35850058]
[1641493014280,13.11780756,153.19,153.13,8.35850058]
[1641493014781,9.955,153.19,153.13,8.35850058]
[1641493015380,5.955,153.19,153.13,8.35850058]
[1641493015583,24.29793288,153.2,153.13,8.35850058]
[1641493016182,4.0,153.19,153.13,8.35850058]
[1641493016482,7.1632013,153.19,153.13,8.35850058]
[1641493016682,4.0,153.14,153.13,8.35850058]
[1641493016882,65.01758,153.14,153.04,27.66479]
[1641493017082,4.0,153.11,153.02,67.4421]
[1641493017281,4.0,153.09,153.02,67.4421]
[1641493017482,10.862,153.09,153.02,67.4421]
[1641493017684,10.862,153.09,153.05,11.2337456]
[1641493017883,6.862,153.09,153.05,11.2337456]
[1641493018883,27.66479,153.06,153.02,55.22251792]
[1641493019084,27.66479,153.06,152.98,146.10790792]
[1641493019283,4.0,153.1,152.98,146.10790792]
[1641493019484,4.0,153.1,153.01,3.68626173]
[1641493020284,4.0,153.09,153.01,3.68626173]
[1641493020886,31.66479,153.09,153.01,3.68626173]
[1641493021084,27.66479,153.09,153.01,3.68626173]
[1641493021585,31.66479,153.11,153.01,3.68626173]
[1641493021786,31.66479,153.11,153.01,8.51626173]
[1641493022390,31.66479,153.11,153.01,4.83]
[1641493022891,27.66479,153.08,153.01,32.49479]
[1641493026497,27.66479,153.11,153.01,32.49479]
[1641493027196,75.77885566,153.12,153.02,4.0]
[1641493027397,75.77885566,153.12,153.01,32.49479]
[1641493027597,61.9612,153.12,153.01,32.49479]
[1641493028196,41.48244566,153.14,153.01,32.49479]
[1641493028398,41.48244566,153.14,153.05,4.0]
[1641493028697,77.11705566,153.15,153.05,9.649]
[1641493029197,77.11705566,153.15,153.07,27.66479]
[1641493029897,63.2994,153.15,153.07,27.66479]
[1641493031702,63.2994,153.15,153.07,38.89849768]
[1641493032400,63.2994,153.15,153.08,4.0]
[1641493032601,63.2994,153.15,153.07,42.89849768]
[1641493033505,63.2994,153.15,153.12,13.81662866]
[1641493033702,27.66479,153.18,153.12,13.81662866]
[1641493036807,27.66479,153.18,153.12,17.81662866]
[1641493037007,27.66479,153.18,153.14,13.81662866]
[1641493038010,27.66479,153.18,153.15,13.81662866]
[1641493038808,27.66479,153.18,153.14,13.81662866]
[1641493041215,27.66479,153.18,153.15,13.81662866]
[1641493044815,27.66479,153.18,153.16,13.81662866]
[1641493046918,80.14265566,153.23,153.16,13.81662866]
[1641493047117,80.14265566,153.23,153.17,27.66479]
[1641493047918,13.81765566,153.24,153.17,27.66479]
[1641493048118,13.81765566,153.24,153.17,34.35679]
[1641493048719,13.81765566,153.25,153.18,20.72988985]
[1641493049118,13.81765566,153.25,153.21,27.66479]
[1641493049720,63.1166,153.26,153.21,27.66479]
[1641493049919,13.81765566,153.27,153.19,13.81662866]
[1641493050824,13.81765566,153.26,153.18,20.72988985]
[1641493053322,13.81765566,153.25,153.21,27.66479]
[1641493054723,13.81765566,153.26,153.21,27.66479]
[1641493055623,13.81765566,153.27,153.21,27.66479]
[1641493057524,13.81765566,153.26,153.21,27.66479]
[1641493058331,13.81765566,153.26,153.22,1.44170005]
[1641493059027,13.81765566,153.26,153.21,27.66479]
[1641493059229,13.81765566,153.25,153.21,27.66479]
[1641493061131,13.81765566,153.25,153.18,13.81662866]
[1641493061432,13.81765566,153.26,153.22,1.44169315]
[1641493062232,13.81765566,153.26,153.22,5.705]
[1641493062432,16.97894068,153.27,153.22,5.705]
[1641493062633,16.97894068,153.27,153.21,1.44169315]
[1641493064238,9.04828502,153.27,153.21,22.17142622]
[1641493065237,3.16128502,153.26,153.21,22.17142622]
[1641493066040,3.16128502,153.26,153.25,4.60225738]
[1641493066839,3.16128502,153.26,153.24,4.60225738]
[1641493068846,16.97894068,153.28,153.24,4.60225738]
[1641493070344,4.0,153.25,153.24,4.60225738]
[1641493070543,5.132,153.25,153.24,4.60225738]
[1641493071347,22.11094068,153.25,153.21,4.60225738]
[1641493072247,22.11094068,153.25,153.19,1.44169315]
[1641493072248,5.132,153.25,153.19,1.44169315]
[1641493072448,3.16145,153.24,153.19,1.44169315]
[1641493073150,15.4992379,153.28,153.19,1.44169315]
[1641493073350,13.80942939,153.25,153.21,4.60314313]
[1641493074453,3.16147786,153.27,153.19,1.44169315]
[1641493074651,13.80949345,153.26,153.22,4.60316448]
[1641493075252,13.80949345,153.26,153.19,1.44169315]
[1641493075652,21.07349345,153.26,153.19,1.44169315]
[1641493075853,4.0,153.21,153.1,59.22251792]
[1641493076153,27.66479,153.19,153.1,55.22251792]
[1641493076353,4.0,153.18,153.1,55.22251792]
[1641493077253,4.0,153.17,153.1,6.91092267]
[1641493077453,3.63681596,153.17,153.1,6.91092267]
[1641493078058,3.63681596,153.17,153.1,4.0]
[1641493078456,3.63681596,153.17,153.08,6.91092267]
[1641493078656,3.63681596,153.17,153.09,4.0]
[1641493079357,61.3596,153.18,153.08,10.91092267]
[1641493079557,61.3596,153.18,153.13,4.0]
[1641493079857,27.66479,153.19,153.13,4.574]
[1641493080759,27.66479,153.21,153.15,4.0]
[1641493081859,4.6043823,153.18,153.15,4.0]
[1641493083362,4.6043823,153.18,153.13,4.574]
[1641493083760,4.6043823,153.18,153.16,4.0]
[1641493084360,4.6043823,153.18,153.13,4.574]
[1641493084962,4.6043823,153.18,153.11,18.13883332]
[1641493085363,4.6043823,153.18,153.15,4.0]
[1641493085562,4.6043823,153.18,153.15,9.098]
[1641493085966,27.66479,153.21,153.15,9.098]
[1641493086264,27.66479,153.21,153.15,5.098]
[1641493086465,4.6043823,153.22,153.18,4.0]
[1641493086666,4.6043823,153.18,153.16,4.0]
[1641493087066,4.6043823,153.18,153.15,5.098]
[1641493087267,4.6043823,153.18,153.17,4.0]
[1641493087967,36.81544706,153.25,153.17,4.0]
[1641493088168,36.81544706,153.26,153.22,4.0]
[1641493088368,36.81544706,153.26,153.22,9.09]
[1641493088669,36.81544706,153.26,153.22,5.09]
[1641493089269,11.50178243,153.27,153.22,5.09]
[1641493089467,11.50178243,153.27,153.22,9.09]
[1641493089668,11.50178243,153.27,153.22,5.09]
[1641493091473,11.50178243,153.27,153.19,6.91014546]
[1641493092172,11.50178243,153.27,153.21,4.0]
[1641493092373,27.66479,153.28,153.21,4.0]
[1641493093076,27.66479,153.28,153.18,60.912]
[1641493093274,11.50178124,153.27,153.2,4.0]
[1641493093474,11.50178124,153.27,153.18,64.912]
[1641493093674,11.50178124,153.27,153.18,4.0]
[1641493093877,11.50178124,153.27,153.16,55.32958]
[1641493094275,27.66479,153.25,153.16,27.66479]
[1641493094476,32.64279,153.25,153.16,27.66479]
[1641493094675,32.64279,153.25,153.12,90.00269]
[1641493094874,66.8036,153.24,153.17,6.90946008]
[1641493095577,66.8036,153.24,153.17,10.90946008]
[1641493095977,66.8036,153.24,153.17,6.90946008]
[1641493096177,66.8036,153.24,153.13,18.13511955]
[1641493096579,66.8036,153.24,153.15,4.0]
[1641493096978,11.50456931,153.23,153.15,4.0]
[1641493097878,11.50456931,153.23,153.13,6.90946008]
[1641493098079,31.50456931,153.23,153.13,6.90946008]
[1641493098281,27.66479,153.17,153.13,6.90946008]
[1641493098480,32.83479,153.17,153.13,6.90946008]
[1641493098982,32.83479,153.17,153.11,27.66479]
[1641493100180,27.66479,153.17,153.11,27.66479]